Cogmind - Beta 16 @@@ ROGUE MODE // 2025.11.20 @ 22:10:25 // AFD2020/Player2 Player: Michael Result: Core destroyed Performance ------------- Evolutions (0) 0 Regions Visited (4) 800 Robots Destroyed (13) 65 Value Destroyed (143) 143 Prototype IDs (2) 40 Alien Tech Used (0) 0 Bonus (187) 187 TOTAL SCORE: 1235 Bonus ------- Follower Combat Kills 223 Friendly Fire -36 Cogmind --------- Core Integrity 0/250 Matter 205/300 Energy 263/265 System Corruption 0% Temperature Cool (0) Movement Walking (120) Location -9/Mines Parts ------- > --- POWER (1) -------- Improved Ion Engine > --- PROPULSION (2) --- Aluminum Leg Aluminum Leg > --- UTILITY (2) ------ Medium Storage Unit Propulsion Shielding > --- WEAPON (2) ------- Light Assault Rifle Light Assault Rifle > --- INVENTORY (10) --- Improved Ion Engine Wheel Huge Storage Unit Structural Scanner Targeting Computer Core Shielding Propulsion Shielding Tractor Beam Assault Rifle Rocket Launcher Peak State ------------ > --- POWER ------------ Improved Ion Engine > --- PROPULSION ------- Aluminum Leg Aluminum Leg > --- UTILITY ---------- Medium Storage Unit Propulsion Shielding > --- WEAPON ----------- Beam Rifle Rocket Launcher > --- INVENTORY -------- Improved Ion Engine Wheel Huge Storage Unit Targeting Computer Core Shielding Propulsion Shielding Tractor Beam Assault Rifle Light Assault Rifle [Rating: 11] Favorites ----------- Power Improved Ion Engine Engine Improved Ion Engine Propulsion Aluminum Leg Leg Aluminum Leg Utility Medium Storage Unit Device Tractor Beam Storage Medium Storage Unit Protection Propulsion Shielding Weapon Light Assault Rifle Energy Gun Beam Rifle Ballistic Gun Light Assault Rifle Launcher Rocket Launcher Build | -11 -10 -10 -10 -9 ------- Run | Yrd Mat Min Exi Min Slots Evolved . | . . . . . Power . | . . . . . Propulsion . | . . . . . Utility . | . . . . . Weapon . | . . . . . Parts Attached 20 | 5 8 7 . . Power 3 | 1 1 1 . . Engine 3 | 1 1 1 . . Core . | . . . . . Reactor . | . . . . . Propulsion 4 | 2 . 2 . . Treads . | . . . . . Leg 4 | 2 . 2 . . Wheel . | . . . . . Hover . | . . . . . Flight . | . . . . . Utility 7 | 1 5 1 . . Device 1 | . 1 . . . Storage 4 | 1 3 . . . Processor . | . . . . . Hackware . | . . . . . Protection 2 | . 1 1 . . Artifact . | . . . . . Weapon 6 | 1 2 3 . . Energy Gun 1 | . 1 . . . Energy Cannon . | . . . . . Ballistic Gun 4 | 1 1 2 . . Ballistic Cannon . | . . . . . Launcher 1 | . . 1 . . Special Weapon . | . . . . . Impact Weapon . | . . . . . Slashing Weapon . | . . . . . Piercing Weapon . | . . . . . Special Melee Weapon . | . . . . . Unidentified Prototypes . | . . . . . Parts Lost . | . . . . . Power . | . . . . . Propulsion . | . . . . . Utility . | . . . . . Weapon . | . . . . . Highest Loss Streak . | . . . . . To Critical Strikes . | . . . . . Average Backups 8 | 2 6 9 10 10 Power . | . . 1 1 1 Propulsion 1 | 2 2 1 1 1 Utility 4 | . 3 5 6 6 Weapon 1 | . . 1 2 2 Tool/Special . | . . . . . Unused Backups 11 | . 4 2 . 5 Power 2 | . 2 . . . Propulsion 4 | . 2 1 . 1 Utility 5 | . . 1 . 4 Weapon . | . . . . . Tool/Special . | . . . . . Average Slot Usage (%) 99 | . 99 100 100 100 Engine 14 | . 14 14 14 14 Leg 28 | . 28 28 28 28 Device 2 | . 5 . . . Storage 17 | . 22 14 14 14 Protection 8 | . . 14 14 14 Energy Gun 4 | . 4 7 . . Ballistic Gun 23 | . 23 20 28 26 Peak Build Rating 11 | 5 10 11 9 10 Average Rating 8 | 3 7 9 9 9 On Entrance 6 | . 5 10 9 9 Avg Prop Armor Cover (%) . | . . . . . Naked Turns . | . . . . . Heaviest Build 22 | 12 22 22 20 20 Greatest Support 20 | 20 20 20 20 20 Greatest Overweight (x) 1 | . 1 1 . . Average Overweight (x) . | . . . . . Largest Inventory Capacity 10 | 8 10 10 10 10 Average Capacity 9 | 6 9 10 10 10 Most Carried 10 | 4 10 10 10 10 Average Carried 8 | 3 6 9 10 10 Final Capacity 10 | 8 10 10 10 10 Final Carried 10 | 4 9 10 10 10 Class Distribution -------------------- 75% | Mutant 21% | Scavenger-Mutant Dominant Class ---------------- Mutant | -10/Materials Mutant | -10/Mines Scavenger-Mutant | -10/Exiles Scavenger-Mutant | -9/Mines Resources | -11 -10 -10 -10 -9 ----------- Run | Yrd Mat Min Exi Min Matter Collected 572 | 235 133 194 . 10 Remotely 42 | . 42 . . . Salvage Created 366 | . 133 186 . 47 Parts 25 | . 9 16 . . Haulers Intercepted . | . . . . . Recyclers Shooed 3 | . 3 . . . Parts Field Recycled . | . . . . . Retrieved Matter . | . . . . . Parts Self-Destructed . | . . . . . Prevented . | . . . . . Parts Restored . | . . . . . Kills | -11 -10 -10 -10 -9 ------- Run | Yrd Mat Min Exi Min Combat Hostiles Destroyed 16 | . 3 7 . 6 Guns 10 | . 3 4 . 3 AOE 6 | . . 3 . 3 Classes Destroyed 6 | . 2 3 . 1 Tunneler 1 | . . 1 . . Recycler 2 | . 1 1 . . Swarmer 8 | . 3 5 . . Grunt 1 | . . 1 . . Hunter 1 | . . . . 1 Assembled 7 | . . 1 . 6 Best Kill Streak 6 | . 3 3 . 6 Combat Bots Only 6 | . 3 3 . 6 Max Kills in Single Turn 3 | . 2 2 . 3 Gunslinging 1 | . 1 . . . Exploded 2 | . . 2 . 2 Melee . | . . . . . Uniques/NPCs Destroyed . | . . . . . Combat | -11 -10 -10 -10 -9 -------- Run | Yrd Mat Min Exi Min Hostile Shots Fired 54 | . 15 25 . 14 Missed 18 | . 2 8 . 8 Hits 36 | . 13 17 . 6 Melee 2 | . . 1 . 1 Projectile 34 | . 13 16 . 5 AOE 1 | . . . . 1 Critical Strikes 3 | . . 2 . 1 Actively Blocked 1 | . . 1 . . Damage Taken 696 | . 165 333 . 198 Core 133 | . 44 83 . 6 Absorbed by Shields . | . . . . . Redirected to Shielding 47 | . . 26 . 21 Core Remaining (%) 100 | 100 . . . . Volleys Fired 44 | . 14 21 . 9 Largest 2 | . 2 2 . 2 Hottest 76 | . 76 76 . 40 Shots Fired 79 | . 26 38 . 15 Gun 72 | . 26 34 . 12 Cannon . | . . . . . Launcher 7 | . . 4 . 3 Special . | . . . . . Kinetic 62 | . 24 26 . 12 Thermal 10 | . 2 8 . . Explosive 7 | . . 4 . 3 Electromagnetic . | . . . . . Robot Hit Streak 8 | . 6 8 . 8 Robot Miss Streak 3 | . 1 3 . 1 Penetration Max . | . . . . . Secondary Targets 3 | . 1 . . 2 Max Gunslinging Chain 1 | . 1 . . 1 Shots Hit Robots 55 | . 19 24 . 12 Core Hits 36 | . 6 18 . 12 Critical Kills . | . . . . . Critical Parts Destroyed . | . . . . . Critical Strikes . | . . . . . Melee Attacks . | . . . . . Impact . | . . . . . Slashing . | . . . . . Piercing . | . . . . . Sneak Attacks . | . . . . . Combat Hostiles . | . . . . . Follow-up Attacks . | . . . . . Damage Inflicted 925 | . 198 431 . 296 Guns 513 | . 198 244 . 71 Cannons . | . . . . . Explosions 400 | . . 175 . 225 Melee . | . . . . . Ramming 12 | . . 12 . . Kinetic 413 | . 184 158 . 71 Thermal 100 | . 14 86 . . Explosive 400 | . . 175 . 225 Electromagnetic . | . . . . . Impact . | . . . . . Slashing . | . . . . . Piercing . | . . . . . Highest Corruption . | . . . . . Average Corruption . | . . . . . Corruption Purged . | . . . . . Corruption Blocked . | . . . . . Overload Shots . | . . . . . Overflow Damage 5 | . . 5 . . Projectiles . | . . . . . Explosions 5 | . . 5 . . Melee . | . . . . . Knockbacks . | . . . . . Impact . | . . . . . Kinetic . | . . . . . Secondary . | . . . . . Self-Inflicted Damage 140 | . . 117 . 23 Shots 5 | . . 3 . 2 Rammed . | . . . . . Targets Rammed 1 | . . 1 . . Kicked 1 | . . 1 . . Crushed . | . . . . . Highest Temperature 76 | . 47 76 . 4 Average Temperature 17 | . 23 19 . 1 Received Heat Transfer 24 | . 9 15 . . Siege Activations . | . . . . . Martial Activations . | . . . . . Shielding Activations . | . . . . . Robots Disrupted . | . . . . . Combat Hostiles . | . . . . . Robots Corrupted . | . . . . . Combat Hostiles . | . . . . . Parts Fried . | . . . . . Impact Corruptions . | . . . . . Robots Melted . | . . . . . Combat Hostiles . | . . . . . Parts Melted 1 | . . 1 . . Heat Transferred 259 | . 37 222 . . Parts Sabotaged . | . . . . . Parts Stolen . | . . . . . Parts Stripped . | . . . . . Power Chain Reactions . | . . . . . Alert | -11 -10 -10 -10 -9 ------- Run | Yrd Mat Min Exi Min Maximum Alert Level . | . . . . . Low Security (%) 100 | 100 100 100 . 100 Level 1 . | . . . . . Level 2 . | . . . . . Level 3 . | . . . . . Level 4 . | . . . . . Level 5 . | . . . . . High Security . | . . . . . Max Security . | . . . . . Peak Influence 164 | . 87 164 . 37 Initial . | . . . . . Average 36 | . 22 56 . 2 Influence Increases 771 | . 303 405 . 63 Destroy 0b10 Robot/C 440 | . 160 260 . 20 Destroy 0b10 Robot/NC 40 | . 25 15 . . Destroy Leader 76 | . 36 30 . 10 Allied During Kill 132 | . 51 74 . 7 Successful Hack 16 | . 16 . . . Disable Machine 15 | . 15 . . . Destroy Structure 52 | . . 26 . 26 Influence Decreases 734 | . 303 300 105 26 Entered New Map 105 | . . . 105 . Time Decay 615 | . 303 300 . 12 Lost Ally 14 | . . . . 14 Squads Dispatched . | . . . . . Investigation . | . . . . . Extermination . | . . . . . Reinforcement . | . . . . . Assault . | . . . . . Garrison . | . . . . . Intercept . | . . . . . Searches Triggered . | . . . . . Construction Impeded . | . . . . . Haulers Reinforced . | . . . . . Active Scanning Responses . | . . . . . Cargo Convoy Interrupts . | . . . . . Stealth | -11 -10 -10 -10 -9 --------- Run | Yrd Mat Min Exi Min Distress Signals 2 | . 1 1 . . Communications Jammed . | . . . . . Distress Signals . | . . . . . Times Spotted 36 | . 14 12 . 10 Peak Tracking Total 5 | . 5 3 . 5 Tactical Retreats . | . . . . . Traps | -11 -10 -10 -10 -9 ------- Run | Yrd Mat Min Exi Min Traps Triggered 2 | . 2 . . . Indirectly . | . . . . . Trap Hack Attempts . | . . . . . Triggered . | . . . . . Disarmed . | . . . . . Reprogrammed . | . . . . . Reused . | . . . . . Traps Extracted . | . . . . . Installed . | . . . . . Triggered . | . . . . . Machines | -11 -10 -10 -10 -9 ---------- Run | Yrd Mat Min Exi Min Machines Disabled 1 | . 1 . . . Max in Single Turn . | . . . . . Machines Repaired . | . . . . . Machines Dismantled . | . . . . . Machines Sabotaged . | . . . . . Overloaded Fab Kills . | . . . . . Hacking | -11 -10 -10 -10 -9 --------- Run | Yrd Mat Min Exi Min Machines Accessed 10 | . 9 . 1 . Terminals 7 | . 7 . . . Fabricators . | . . . . . Repair Stations . | . . . . . Recycling Units 2 | . 2 . . . Scanalyzers . | . . . . . Garrison Access . | . . . . . Total Hacks 19 | . 18 . 1 . Successful 10 | . 9 . 1 . Failed 9 | . 9 . . . Catastrophic 1 | . 1 . . . Database Lockouts . | . . . . . Manual 1 | . 1 . . . Terminals 14 | . 14 . . . Fabricators . | . . . . . Repair Stations . | . . . . . Recycling Units 4 | . 4 . . . Scanalyzers . | . . . . . Garrison Access . | . . . . . Terminal Hacks 8 | . 7 . 1 . Record 1 | . . . 1 . Prototype ID Bank 1 | . 1 . . . Locate Traps 4 | . 4 . . . Patrol Status 1 | . 1 . . . Zone Layout 1 | . 1 . . . Fabricator Hacks . | . . . . . Repair Station Hacks . | . . . . . Recycling Unit Hacks 2 | . 2 . . . Retrieve Components 2 | . 2 . . . Scanalyzer . | . . . . . Garrison Access Hacks . | . . . . . Unauthorized Hacks . | . . . . . Terminals . | . . . . . Fabricators . | . . . . . Repair Stations . | . . . . . Recycling Units . | . . . . . Scanalyzers . | . . . . . Garrison Access . | . . . . . Data Cores Recovered . | . . . . . Used . | . . . . . Hacking Detections 8 | . 8 . . . Full Trace Events . | . . . . . Feedback Events . | . . . . . Feedback Blocked . | . . . . . Robot Schematics Acquired . | . . . . . Robots Built . | . . . . . Authchips . | . . . . . Time . | . . . . . Total Robot Build Rating . | . . . . . Part Schematics Acquired . | . . . . . Parts Built . | . . . . . Authchips . | . . . . . Time . | . . . . . Total Part Build Rating . | . . . . . Part Studies Acquired . | . . . . . Parts Repaired . | . . . . . Time . | . . . . . Parts Recycled . | . . . . . Recycled Matter . | . . . . . Retrieved Matter . | . . . . . Retrieved Components 13 | . 13 . . . Parts Scanalyzed . | . . . . . Part Schematics Acquired . | . . . . . Parts Damaged . | . . . . . Bothacking | -11 -10 -10 -10 -9 ------------ Run | Yrd Mat Min Exi Min Used RIF Installer . | . . . . . Robots Hacked . | . . . . . Non-combat . | . . . . . Combat . | . . . . . Robot Hacks Applied . | . . . . . Relay Couplers Released . | . . . . . Fabnet Peak Effective % . | . . . . . Robots Rewired 5 | . . . 5 . Allies Hacked . | . . . . . Hacks Repelled . | . . . . . Allies | -11 -10 -10 -10 -9 -------- Run | Yrd Mat Min Exi Min Total Allies 8 | . 1 . 5 2 Largest Group 7 | . 1 1 6 7 Highest-Rated Group 162 | . 60 63 131 162 Highest-Rated Ally 68 | . 60 63 65 68 Total Orders . | . . . . . Ally Attacks 71 | . 18 20 . 33 Total Damage 984 | . 295 288 . 401 Kills 26 | . 9 8 . 9 Allies Corrupted . | . . . . . Allies Melted . | . . . . . Intel | -11 -10 -10 -10 -9 ------- Run | Yrd Mat Min Exi Min Active Infowar (turns) . | . . . . . Robot Analysis Total . | . . . . . Derelict Logs Recovered 2 | . . 2 . . Drone Launches . | . . . . . Drone Recoveries . | . . . . . Exploration | -11 -10 -10 -10 -9 ------------- Run | Yrd Mat Min Exi Min Turns Passed 2822 | 53 1161 1021 486 101 Spaces Moved 1617 | 38 612 562 351 54 Core 5 | 5 . . . . Treads . | . . . . . Legs 1612 | 33 612 562 351 54 Wheels . | . . . . . Hover . | . . . . . Flight . | . . . . . Fastest Speed 50 | 50 120 120 120 120 Average Speed 157 | 110 179 164 120 120 Slowest Speed 190 | 120 190 190 120 120 Overloaded Moves . | . . . . . Propulsion Burnouts . | . . . . . Robots Hopped . | . . . . . Potential Cave-ins . | . . . . . Cave-ins Triggered . | . . . . . Exploration Rate (%) 56 | 3 92 92 77 20 Regions Visited 4 Branch Regions 3 Pre-discovered Areas 2 | . . 1 1 . Known Exits Taken . | . . . . . Unknown Exits Taken 4 | 1 1 1 1 . Scrap Searched 1 | . . 1 . . Spaces Dug . | . . . . . Terrain Destroyed 52 | . . 29 . 23 Melee . | . . . . . Projectile . | . . . . . AOE 52 | . . 29 . 23 Terrain Rammed . | . . . . . Walls Destroyed . | . . . . . Machines Disabled . | . . . . . Actions | -11 -10 -10 -10 -9 --------- Run | Yrd Mat Min Exi Min Total 1815 | 46 651 625 416 77 Wait 39 | . 1 20 10 8 Move 1613 | 37 611 561 350 54 Hop . | . . . . . Pick Up 16 | 4 8 4 . . Fast Attach 10 | 5 4 1 . . Attach . | . . . . . Detach 2 | . 1 1 . . Swap 20 | . 4 10 . 6 Drop 14 | . 8 6 . . Fire 44 | . 14 21 . 9 Melee . | . . . . . Ram . | . . . . . Kick 1 | . . 1 . . Crush . | . . . . . Escape Stasis . | . . . . . Rewire 56 | . . . 56 . Trap . | . . . . . Miscellaneous . | . . . . . Route ------- -11/Scrapyard -10/Materials (discovered 5 exits: [*Mat x3] / [*Min] / [*Sub]) -10/Mines (discovered 3 exits: [*Mat x2] / *Exi) -10/Exiles -9/Mines History --------- Turn | Location | Event 11 | -11/Scrapyard | Discovered new exit (range 15) 54 | -11/Scrapyard | Entered Materials 154 | -10/Materials | Discovered new exit (range 13) 300 | -10/Materials | Discovered new exit (range 4) 311 | -10/Materials | Build established: Mutant 542 | -10/Materials | Discovered new exit (range 16) 741 | -10/Materials | Discovered new exit (range 11) 824 | -10/Materials | Discovered new exit (range 14) 1215 | -10/Materials | Entered Mines 1259 | -10/Mines | Received a Rocket Launcher from a helpful Derelict 1259 | -10/Mines | Discovered new exit (range 9) 1374 | -10/Mines | Learned Materials terminal intel 1629 | -10/Mines | Excavation squad dispatched 1629 | -10/Mines | A large section of the Mines collapsed 1632 | -10/Mines | Core integrity fell below 50% 1799 | -10/Mines | Discovered new exit (range 9) 2031 | -10/Mines | A weapon hastily lodged in a ceiling crevice suddenly fell to the ground 2131 | -10/Mines | Core integrity fell below 20% 2215 | -10/Mines | Deemed a non-threat by the Exiles lab entrance 2215 | -10/Mines | Discovered new exit (range 5) 2236 | -10/Mines | Entered Exiles 2236 | -10/Exiles | Found Exiles lab destroyed 2377 | -10/Exiles | Learned location of Zion (-7) 2434 | -10/Exiles | Build established: Scavenger-Mutant 2699 | -10/Exiles | Discovered new exit (range 12) 2722 | -10/Exiles | Entered Mines 2722 | -9/Mines | Accompanied by 5 allies 2723 | -9/Mines | Assembled infested the area 2728 | -9/Mines | Assisted by a Guerilla fighting off Assembled 2804 | -9/Mines | Lost 8 allies 2823 | -9/Mines | Core destroyed Last Messages --------------- 02788_ as-56572 destroyed. 02790_ HV Slug penetrates Wall. 02791_ K-01 Serf collects debris. 02792_ as-21218 destroyed. 02794_ K-01 Serf collects debris. 02796_ Player 2 drops Imp. Ion Engine. 02796_ Player 2 attaches Fission Core. 02797_ Acquired 7 matter. 02798_ K-01 Serf collects debris. 02802_ The unstable cave ceiling collapses. 02802_ 4 Matter crushed. 02802_ K-01 Serf collects debris. 02804_ Acquired 3 matter. 02807_ K-01 Serf collects debris. 02822_ HV Slug penetrates D-53 Grenadier. 02822_ D-53 Grenadier suffers critical hit (Destroy). 02822_ D-53 Grenadier destroyed. 02822_ HV Slug penetrates Wall. 02823_ K-01 Serf collects debris. Map ----- +----------------------------------------------------+ | ??????????????????????????????????????????????? | | ??????????????????????????????????????????????? | | ??????????????????????????????????????????????? | | ??????????????????????????????????????????????? | | ??????????????????????????????????????????????? | | ??????????????????????????????????????????????? | | ??????????????????????????????????????????????? | | ??????????????????????????????????????????????? | | ??????????????????????????????????????????????? | | ??????????????????????????????????????????????? | | ???????????????????????? ???##????????????????? | | ???????????????????????? ?? ##???????????????? | | ???????????????????????? ? ##??????????????? | | ???????????????????????? ???????????????? | | ??????????????????????? % ?????????????????? | | ??????????????????????? ??????????????????? | | ???????#?????????????## # ???????????????????? | | ???####T#?####????### # ???????????????????? | | ???# ????# ????????????????????? | | ???# ????# # ????????????????????? | | ???# ????#d #? ?????????????????????? | | ???# """ """ #???#= ;# ?????????????????????? | | ???# """ """ #???#%*# ###???????????????????? | | ???# """ """ #???#]@ #???????????????????? | | ???# #??## #???????????????????? | | ???# """ #?## @ #???????????????????? | | ???# """ ### < #?????? ??????????? | | ???# """ ## ##??? ?????????? | | ???# ### ### # ### #?????????? | | ???# """ #?### #??????????? | | ???# """ #### # #???????????? | | ???# """ ## ###??????????????????? | | ???# %# [% ### #????????????? | | ???#### ##### # * #????????????? | | ??????# !=[% = #???????????? | | ??????# = ! k """# #??????????? | | ??????## #### * #####??? #??????????? | | ???????# #?# ## ##????????????????????? | | ???????# #?##?#####![ #?????????????????????? | | ???????# ##########%=k #????????????????????? | | ???????# = #???????????????????? | | ???????############ #???????????????????? | | ??????????????????## #??????????????????? | | ???????????????????## ?????????????????? | | ?????????????????????# ?????????????????? | | ??????????????????????########????????????????? | | ??????????????????????????????????????????????? | | | | | | | +----------------------------------------------------+ Best States ------------- Heat Dissipation 25 Energy Generation 12 Energy Capacity 500 Matter Stores 300 Matter Capacity 300 Sight Range 16 Terrain Scan Density 10 Propulsion Shielding 33 Evasion (%) 55 Item Schematics ----------------- None Robot Schematics ------------------ None Fabricated ------------ Nothing Repaired ---------- Nothing Studied --------- None Alien Tech Used ----------------- None Achievements -------------- For Emergencies Only That Tickles Challenges ------------ None Player 2 | -11 -10 -10 -10 -9 ---------- Run | Yrd Mat Min Exi Min Slots Evolved . | . . . . . Power . | . . . . . Propulsion . | . . . . . Utility . | . . . . . Weapon . | . . . . . Parts Attached 19 | . 15 1 2 1 Parts Lost . | . . . . . Damage Taken 423 | . 214 111 . 98 Core 119 | . 63 22 . 34 Player 2/Cogmind (%) 47 | . 58 20 . 85 Absorbed by Shields . | . . . . . Damage Inflicted 752 | . 295 288 . 169 Player 2/Cogmind (%) 44 | . 59 40 . 36 Combat Hostiles Destroyed 16 | . 5 8 . 3 Player 2/Cogmind (%) 50 | . 62 53 . 33 Game ------ Seed SapperProtonDiverter Manual? 0 Play Time 00:19:53 Cumulative 1083.5 hours Start 2025.11.20 @ 21:51:32 End 2025.11.20 @ 22:10:25 Sessions 1 Manual Loads 0 Difficulty Rogue Special Mode AFD2020/Player2 Game No. 304 Rogue 268 Adventurer 36 Explorer 0 Win Type - Total 19 Types 19/0/0/0/0/0/0/0/0/0 Lore% 35 Gallery% 53 Achievement% 30 Wizard Run 0 Options --------- Layout 1 ASCII 0 Keyboard 1 Movement Vi Keybinds 0 Fullscreen 1 Font 24/Crisp Map View 25x17 Zoom Use 99% Tactical HUD 1 Map Filters NONE Filters NONE Steam 0 RUN: 37a3db7c-6956-43af-9e90-1c9d78ec10e0